[Event "European Women's Chess Championship (49-84)"]
[Site "Batumi, Georgia"]
[Date "2026.05.25"]
[Round "1.61"]
[White "Skarbarchuk, Tetyana"]
[Black "Damaso Tacoronte, Carolina"]
[Result "1-0"]
[TimeControl "90min /40moves + 30min + 30-sec increment from move 1"]
[WhiteTitle "-"]
[BlackTitle "-"]
[WhiteFideId "14184494"]
[BlackFideId "2292858"]
[WhiteElo "2236"]
[BlackElo "1890"]

1. c4 {[%clk 01:30:28]} {[%emt 00:00:32]} Nf6 {[%clk 01:30:11]} {[%emt
00:00:49]} 2. Nc3 {[%clk 01:30:45]} {[%emt 00:00:13]} e5 {[%clk 01:27:04]}
{[%emt 00:03:37]} 3. Nf3 {[%clk 01:30:37]} {[%emt 00:00:39]} d6 {[%clk
01:26:50]} {[%emt 00:00:43]} 4. g3 {[%clk 01:18:59]} {[%emt 00:12:09]} Be7
{[%clk 01:23:51]} {[%emt 00:03:28]} 5. Bg2 {[%clk 01:17:05]} {[%emt 00:02:24]}
O-O {[%clk 01:22:13]} {[%emt 00:02:07]} 6. d4 {[%clk 01:11:59]} {[%emt
00:05:37]} Nbd7 {[%clk 01:17:23]} {[%emt 00:05:20]} 7. O-O {[%clk 01:11:32]}
{[%emt 00:00:58]} a5 {[%clk 01:10:26]} {[%emt 00:07:26]} 8. e3 {[%clk
01:09:18]} {[%emt 00:02:44]} c6 {[%clk 01:05:08]} {[%emt 00:05:48]} 9. a3
{[%clk 00:58:54]} {[%emt 00:10:55]} Ne8 {[%clk 00:58:52]} {[%emt 00:06:44]} 10.
Re1 {[%clk 00:51:28]} {[%emt 00:07:57]} f5 {[%clk 00:46:23]} {[%emt 00:12:59]}
11. e4 {[%clk 00:51:23]} {[%emt 00:00:35]} f4 {[%clk 00:45:39]} {[%emt
00:01:14]} 12. gxf4 {[%clk 00:46:42]} {[%emt 00:05:12]} exf4 {[%clk 00:45:00]}
{[%emt 00:01:08]} 13. Rb1 {[%clk 00:45:54]} {[%emt 00:01:18]} Kh8 {[%clk
00:32:08]} {[%emt 00:13:22]} 14. b4 {[%clk 00:37:45]} {[%emt 00:08:40]} axb4
{[%clk 00:31:15]} {[%emt 00:01:23]} 15. axb4 {[%clk 00:38:08]} {[%emt
00:00:07]} Nc7 {[%clk 00:12:46]} {[%emt 00:18:59]} 16. h3 {[%clk 00:18:05]}
{[%emt 00:20:32]} Qe8 {[%clk 00:09:48]} {[%emt 00:03:27]} 17. Ne2 {[%clk
00:16:05]} {[%emt 00:02:31]} g5 {[%clk 00:07:54]} {[%emt 00:02:25]} 18. Nh2
{[%clk 00:15:15]} {[%emt 00:01:20]} Nf6 {[%clk 00:05:31]} {[%emt 00:02:53]} 19.
Bb2 {[%clk 00:08:03]} {[%emt 00:07:42]} Qh5 {[%clk 00:03:02]} {[%emt 00:02:58]}
20. Qd3 {[%clk 00:06:07]} {[%emt 00:02:26]} Kg8 {[%clk 00:02:41]} {[%emt
00:00:51]} 21. e5 {[%clk 00:04:27]} {[%emt 00:02:10]} dxe5 {[%clk 00:02:50]}
{[%emt 00:00:21]} 22. dxe5 {[%clk 00:04:54]} {[%emt 00:00:04]} Nfe8 {[%clk
00:02:53]} {[%emt 00:00:26]} 23. Qb3 {[%clk 00:05:10]} {[%emt 00:00:14]} Bf5
{[%clk 00:02:01]} {[%emt 00:01:22]} 24. Rbd1 {[%clk 00:05:17]} {[%emt
00:00:23]} Ne6 {[%clk 00:01:44]} {[%emt 00:00:48]} 25. c5 {[%clk 00:04:44]}
{[%emt 00:01:02]} Kh8 {[%clk 00:01:29]} {[%emt 00:00:46]} 26. Rd7 {[%clk
00:03:12]} {[%emt 00:02:01]} Rf7 {[%clk 00:00:50]} {[%emt 00:01:09]} 27. Rxb7
{[%clk 00:03:31]} {[%emt 00:00:12]} Rc8 {[%clk 00:00:39]} {[%emt 00:00:41]} 28.
Nd4 {[%clk 00:03:35]} {[%emt 00:00:25]} Nxd4 {[%clk 00:00:39]} {[%emt
00:00:30]} 29. Bxd4 {[%clk 00:04:00]} {[%emt 00:00:05]} Ng7 {[%clk 00:00:33]}
{[%emt 00:00:36]} 30. e6 {[%clk 00:04:10]} {[%emt 00:00:21]} 1-0

[Event "European Women's Chess Championship (49-84)"]
[Site "Batumi, Georgia"]
[Date "2026.05.25"]
[Round "1.62"]
[White "Khairova, Evelina"]
[Black "Charkhalashvili, Inga"]
[Result "1/2-1/2"]
[TimeControl "90min /40moves + 30min + 30-sec increment from move 1"]
[WhiteTitle "-"]
[BlackTitle "-"]
[WhiteFideId "2845768"]
[BlackFideId "13601431"]
[WhiteElo "1880"]
[BlackElo "2235"]

1. e4 {[%clk 01:30:53]} {[%emt 00:00:06]} c6 {[%clk 01:30:54]} {[%emt
00:00:07]} 2. d4 {[%clk 01:31:19]} {[%emt 00:00:04]} d5 {[%clk 01:31:20]}
{[%emt 00:00:04]} 3. Nc3 {[%clk 01:31:46]} {[%emt 00:00:03]} dxe4 {[%clk
01:31:34]} {[%emt 00:00:16]} 4. Nxe4 {[%clk 01:32:13]} {[%emt 00:00:03]} Bf5
{[%clk 01:31:38]} {[%emt 00:00:25]} 5. Ng3 {[%clk 01:32:36]} {[%emt 00:00:08]}
Bg6 {[%clk 01:31:56]} {[%emt 00:00:12]} 6. Nf3 {[%clk 01:27:40]} {[%emt
00:05:26]} Nd7 {[%clk 01:32:16]} {[%emt 00:00:10]} 7. h4 {[%clk 01:27:33]}
{[%emt 00:00:37]} h6 {[%clk 01:32:38]} {[%emt 00:00:08]} 8. h5 {[%clk
01:27:21]} {[%emt 00:00:41]} Bh7 {[%clk 01:33:02]} {[%emt 00:00:06]} 9. Bd3
{[%clk 01:27:25]} {[%emt 00:00:27]} Bxd3 {[%clk 01:33:25]} {[%emt 00:00:07]} 10.
Qxd3 {[%clk 01:27:51]} {[%emt 00:00:05]} e6 {[%clk 01:33:41]} {[%emt 00:00:12]}
11. Bd2 {[%clk 01:27:46]} {[%emt 00:00:36]} Ngf6 {[%clk 01:33:55]} {[%emt
00:00:16]} 12. O-O-O {[%clk 01:27:28]} {[%emt 00:00:49]} Be7 {[%clk 01:33:36]}
{[%emt 00:00:48]} 13. Kb1 {[%clk 01:27:02]} {[%emt 00:00:56]} Qc7 {[%clk
01:33:33]} {[%emt 00:00:33]} 14. Ne4 {[%clk 01:25:51]} {[%emt 00:01:42]} O-O-O
{[%clk 01:33:07]} {[%emt 00:00:55]} 15. Qe2 {[%clk 01:15:48]} {[%emt 00:10:34]}
Rhe8 {[%clk 01:30:09]} {[%emt 00:03:26]} 16. c4 {[%clk 01:07:47]} {[%emt
00:08:32]} Nxe4 {[%clk 01:28:17]} {[%emt 00:02:22]} 17. Qxe4 {[%clk 01:08:08]}
{[%emt 00:00:08]} Nf6 {[%clk 01:27:30]} {[%emt 00:01:18]} 18. Qe2 {[%clk
01:06:35]} {[%emt 00:02:03]} c5 {[%clk 01:26:59]} {[%emt 00:01:01]} 19. Bc3
{[%clk 01:04:46]} {[%emt 00:02:18]} Qf4 {[%clk 01:23:09]} {[%emt 00:04:20]} 20.
Rh4 {[%clk 00:41:28]} {[%emt 00:23:49]} Ng4 {[%clk 01:16:23]} {[%emt 00:07:16]}
21. Rhh1 {[%clk 00:36:19]} {[%emt 00:05:39]} Bf6 {[%clk 01:11:09]} {[%emt
00:05:44]} 22. g3 {[%clk 00:31:47]} {[%emt 00:05:02]} Qf5+ {[%clk 01:11:10]}
{[%emt 00:00:29]} 23. Ka1 {[%clk 00:31:09]} {[%emt 00:01:08]} Rd7 {[%clk
00:56:07]} {[%emt 00:15:33]} 24. Nh4 {[%clk 00:25:56]} {[%emt 00:05:43]} Bxh4
{[%clk 00:54:54]} {[%emt 00:01:43]} 25. Rxh4 {[%clk 00:26:04]} {[%emt
00:00:22]} Nf6 {[%clk 00:52:16]} {[%emt 00:03:08]} 26. a3 {[%clk 00:19:49]}
{[%emt 00:06:45]} Red8 {[%clk 00:50:04]} {[%emt 00:02:42]} 27. Rd2 {[%clk
00:18:50]} {[%emt 00:01:29]} cxd4 {[%clk 00:43:49]} {[%emt 00:06:45]} 28. Rdxd4
{[%clk 00:18:36]} {[%emt 00:00:44]} Qg5 {[%clk 00:34:17]} {[%emt 00:10:02]} 29.
Rxd7 {[%clk 00:14:27]} {[%emt 00:04:39]} Rxd7 {[%clk 00:33:34]} {[%emt
00:01:14]} 30. Bd4 {[%clk 00:08:57]} {[%emt 00:05:59]} a6 {[%clk 00:30:20]}
{[%emt 00:03:44]} 1/2-1/2

[Event "European Women's Chess Championship (49-84)"]
[Site "Batumi, Georgia"]
[Date "2026.05.25"]
[Round "1.63"]
[White "Rapport, Jovana"]
[Black "Recica, Jona"]
[Result "1-0"]
[TimeControl "90min /40moves + 30min + 30-sec increment from move 1"]
[WhiteTitle "-"]
[BlackTitle "-"]
[WhiteFideId "937266"]
[BlackFideId "22105239"]
[WhiteElo "2235"]
[BlackElo "1842"]

1. Nf3 {[%clk 01:30:56]} {[%emt 00:00:03]} d5 {[%clk 01:30:50]} {[%emt
00:00:11]} 2. g3 {[%clk 01:30:52]} {[%emt 00:00:33]} Nf6 {[%clk 01:30:01]}
{[%emt 00:01:19]} 3. Bg2 {[%clk 01:31:13]} {[%emt 00:00:08]} e6 {[%clk
01:29:33]} {[%emt 00:00:59]} 4. O-O {[%clk 01:31:12]} {[%emt 00:00:30]} Be7
{[%clk 01:29:31]} {[%emt 00:00:33]} 5. d3 {[%clk 01:31:12]} {[%emt 00:00:30]}
O-O {[%clk 01:29:10]} {[%emt 00:00:51]} 6. Nbd2 {[%clk 01:29:00]} {[%emt
00:02:41]} b6 {[%clk 01:23:58]} {[%emt 00:05:41]} 7. e4 {[%clk 01:28:57]}
{[%emt 00:00:35]} Bb7 {[%clk 01:23:17]} {[%emt 00:01:11]} 8. e5 {[%clk
01:28:43]} {[%emt 00:00:44]} Nfd7 {[%clk 01:17:26]} {[%emt 00:06:21]} 9. Re1
{[%clk 01:28:54]} {[%emt 00:00:18]} c5 {[%clk 01:16:53]} {[%emt 00:01:04]} 10.
Nf1 {[%clk 01:29:01]} {[%emt 00:00:22]} Nc6 {[%clk 01:15:54]} {[%emt 00:01:30]}
11. h4 {[%clk 01:29:22]} {[%emt 00:00:08]} Re8 {[%clk 01:14:19]} {[%emt
00:02:05]} 12. c3 {[%clk 01:25:09]} {[%emt 00:04:43]} Qc7 {[%clk 01:10:39]}
{[%emt 00:04:11]} 13. Bf4 {[%clk 01:24:21]} {[%emt 00:01:17]} Nf8 {[%clk
01:07:41]} {[%emt 00:03:28]} 14. h5 {[%clk 01:17:45]} {[%emt 00:07:07]} h6
{[%clk 01:04:53]} {[%emt 00:03:18]} 15. N1h2 {[%clk 01:18:07]} {[%emt
00:00:08]} Nh7 {[%clk 01:04:15]} {[%emt 00:01:08]} 16. Ng4 {[%clk 01:16:50]}
{[%emt 00:01:46]} Qd8 {[%clk 01:00:23]} {[%emt 00:04:23]} 17. Bd2 {[%clk
01:16:55]} {[%emt 00:00:25]} Ng5 {[%clk 00:49:12]} {[%emt 00:11:41]} 18. Nfh2
{[%clk 01:16:38]} {[%emt 00:00:47]} Nh7 {[%clk 00:46:47]} {[%emt 00:02:55]} 19.
f4 {[%clk 01:06:50]} {[%emt 00:10:19]} Qd7 {[%clk 00:44:28]} {[%emt 00:02:48]}
20. Nf3 {[%clk 01:06:10]} {[%emt 00:01:09]} Ba6 {[%clk 00:40:44]} {[%emt
00:04:15]} 21. Nf2 {[%clk 01:03:39]} {[%emt 00:03:01]} b5 {[%clk 00:36:21]}
{[%emt 00:04:53]} 22. Bh3 {[%clk 01:00:41]} {[%emt 00:03:27]} Qd8 {[%clk
00:33:45]} {[%emt 00:03:06]} 23. a3 {[%clk 00:51:35]} {[%emt 00:09:37]} c4
{[%clk 00:31:51]} {[%emt 00:02:24]} 24. Be3 {[%clk 00:50:30]} {[%emt 00:01:35]}
Na5 {[%clk 00:30:31]} {[%emt 00:01:49]} 25. Nd4 {[%clk 00:48:13]} {[%emt
00:02:48]} Bc5 {[%clk 00:28:05]} {[%emt 00:02:57]} 26. Nc6 {[%clk 00:31:56]}
{[%emt 00:16:47]} Qb6 {[%clk 00:23:26]} {[%emt 00:05:08]} 27. Bxc5 {[%clk
00:32:11]} {[%emt 00:00:15]} Qxc6 {[%clk 00:23:50]} {[%emt 00:00:07]} 28. Be3
{[%clk 00:32:02]} {[%emt 00:00:38]} Nb3 {[%clk 00:23:08]} {[%emt 00:01:12]} 29.
Rb1 {[%clk 00:32:21]} {[%emt 00:00:11]} Bb7 {[%clk 00:23:18]} {[%emt 00:00:21]}
30. d4 {[%clk 00:32:02]} {[%emt 00:00:48]} a5 {[%clk 00:23:13]} {[%emt
00:00:35]} 31. g4 {[%clk 00:27:17]} {[%emt 00:05:14]} Qb6 {[%clk 00:21:19]}
{[%emt 00:02:25]} 32. g5 {[%clk 00:27:23]} {[%emt 00:00:23]} Qd8 {[%clk
00:20:44]} {[%emt 00:01:06]} 33. Qg4 {[%clk 00:25:14]} {[%emt 00:02:40]} Kh8
{[%clk 00:19:35]} {[%emt 00:01:39]} 34. Kh2 {[%clk 00:25:32]} {[%emt 00:00:11]}
f5 {[%clk 00:12:57]} {[%emt 00:07:08]} 35. exf6 {[%clk 00:23:36]} {[%emt
00:02:26]} gxf6 {[%clk 00:11:57]} {[%emt 00:01:30]} 36. gxh6 {[%clk 00:23:38]}
{[%emt 00:00:28]} Rg8 {[%clk 00:12:08]} {[%emt 00:00:19]} 37. Qxe6 {[%clk
00:17:34]} {[%emt 00:06:34]} Qf8 {[%clk 00:05:37]} {[%emt 00:07:03]} 38. Qd7
{[%clk 00:15:09]} {[%emt 00:02:54]} Ra7 {[%clk 00:02:25]} {[%emt 00:03:42]} 39.
Rg1 {[%clk 00:09:16]} {[%emt 00:06:23]} Qxh6 {[%clk 00:01:41]} {[%emt
00:01:15]} 40. Rxg8+ {[%clk 00:07:52]} {[%emt 00:01:54]} Kxg8 {[%clk 00:02:05]}
{[%emt 00:00:06]} 41. Rg1+ {[%clk 00:08:04]} {[%emt 00:00:16]} Kh8 {[%clk
00:02:20]} {[%emt 00:00:16]} 42. Be6 {[%clk 00:02:45]} {[%emt 00:05:49]} 1-0

[Event "European Women's Chess Championship (49-84)"]
[Site "Batumi, Georgia"]
[Date "2026.05.25"]
[Round "1.64"]
[White "Kalyoncu, Beren"]
[Black "Piddubna, Bozhena"]
[Result "0-1"]
[TimeControl "90min /40moves + 30min + 30-sec increment from move 1"]
[WhiteTitle "-"]
[BlackTitle "-"]
[WhiteFideId "51608383"]
[BlackFideId "34109293"]
[WhiteElo "1840"]
[BlackElo "2235"]

1. e4 {[%clk 01:30:52]} {[%emt 00:00:07]} e5 {[%clk 01:30:46]} {[%emt
00:00:14]} 2. Nf3 {[%clk 01:31:06]} {[%emt 00:00:16]} Nc6 {[%clk 01:31:03]}
{[%emt 00:00:13]} 3. d4 {[%clk 01:31:12]} {[%emt 00:00:23]} exd4 {[%clk
01:30:56]} {[%emt 00:00:38]} 4. Bc4 {[%clk 01:31:16]} {[%emt 00:00:26]} Nf6
{[%clk 01:30:44]} {[%emt 00:00:42]} 5. e5 {[%clk 01:31:15]} {[%emt 00:00:31]}
d5 {[%clk 01:30:51]} {[%emt 00:00:24]} 6. Bb5 {[%clk 01:31:30]} {[%emt
00:00:15]} Nd7 {[%clk 01:30:37]} {[%emt 00:00:44]} 7. O-O {[%clk 01:30:32]}
{[%emt 00:01:27]} Be7 {[%clk 01:30:40]} {[%emt 00:00:28]} 8. Bxc6 {[%clk
01:29:32]} {[%emt 00:01:29]} bxc6 {[%clk 01:31:04]} {[%emt 00:00:06]} 9. Nxd4
{[%clk 01:29:03]} {[%emt 00:00:58]} Nb8 {[%clk 01:30:51]} {[%emt 00:00:44]} 10.
Nc3 {[%clk 01:28:42]} {[%emt 00:00:50]} O-O {[%clk 01:30:38]} {[%emt 00:00:44]}
11. Qf3 {[%clk 01:27:30]} {[%emt 00:01:41]} a5 {[%clk 01:30:29]} {[%emt
00:00:40]} 12. Re1 {[%clk 01:26:10]} {[%emt 00:01:49]} Ra6 {[%clk 01:25:59]}
{[%emt 00:05:00]} 13. Nf5 {[%clk 01:25:35]} {[%emt 00:01:05]} Bxf5 {[%clk
01:21:32]} {[%emt 00:04:58]} 14. Qxf5 {[%clk 01:25:54]} {[%emt 00:00:10]} Qc8
{[%clk 01:20:23]} {[%emt 00:01:40]} 15. Qxc8 {[%clk 01:20:19]} {[%emt
00:06:04]} Rxc8 {[%clk 01:20:47]} {[%emt 00:00:07]} 16. Be3 {[%clk 01:18:37]}
{[%emt 00:02:11]} Nd7 {[%clk 01:15:50]} {[%emt 00:05:28]} 17. f4 {[%clk
01:13:17]} {[%emt 00:05:50]} a4 {[%clk 01:10:06]} {[%emt 00:06:15]} 18. a3
{[%clk 01:00:01]} {[%emt 00:13:45]} Rb8 {[%clk 01:06:40]} {[%emt 00:03:56]} 19.
Rab1 {[%clk 00:53:59]} {[%emt 00:06:31]} Bc5 {[%clk 01:01:55]} {[%emt
00:05:16]} 20. Na2 {[%clk 00:46:54]} {[%emt 00:07:35]} Bf8 {[%clk 00:36:48]}
{[%emt 00:25:36]} 21. Nc3 {[%clk 00:33:59]} {[%emt 00:13:25]} g6 {[%clk
00:36:32]} {[%emt 00:00:47]} 22. Kh1 {[%clk 00:19:55]} {[%emt 00:14:32]} Ra5
{[%clk 00:28:30]} {[%emt 00:08:32]} 23. Bf2 {[%clk 00:14:26]} {[%emt 00:05:55]}
Bh6 {[%clk 00:24:34]} {[%emt 00:04:30]} 24. g3 {[%clk 00:13:06]} {[%emt
00:01:50]} Nf8 {[%clk 00:24:30]} {[%emt 00:00:34]} 25. Red1 {[%clk 00:08:52]}
{[%emt 00:04:44]} Ne6 {[%clk 00:22:57]} {[%emt 00:02:03]} 26. Na2 {[%clk
00:06:46]} {[%emt 00:02:36]} Bf8 {[%clk 00:20:43]} {[%emt 00:02:44]} 27. Be1
{[%clk 00:02:24]} {[%emt 00:04:52]} Rab5 {[%clk 00:13:17]} {[%emt 00:07:57]} 28.
Nb4 {[%clk 00:02:16]} {[%emt 00:00:37]} c5 {[%clk 00:06:38]} {[%emt 00:07:09]}
29. Nxd5 {[%clk 00:02:32]} {[%emt 00:00:14]} Rxb2 {[%clk 00:07:05]} {[%emt
00:00:03]} 30. Rxb2 {[%clk 00:00:56]} {[%emt 00:02:07]} Rxb2 {[%clk 00:07:30]}
{[%emt 00:00:04]} 31. Nf6+ {[%clk 00:00:40]} {[%emt 00:00:45]} Kg7 {[%clk
00:07:49]} {[%emt 00:00:12]} 32. Ba5 {[%clk 00:00:39]} {[%emt 00:00:31]} Be7
{[%clk 00:01:31]} {[%emt 00:06:49]} 33. Rd7 {[%clk 00:00:46]} {[%emt 00:00:23]}
Kf8 {[%clk 00:00:33]} {[%emt 00:01:28]} 34. Nd5 {[%clk 00:00:35]} {[%emt
00:00:40]} Bd8 {[%clk 00:00:35]} {[%emt 00:00:28]} 35. Ne3 {[%clk 00:00:41]}
{[%emt 00:00:25]} Ke8 {[%clk 00:00:35]} {[%emt 00:00:29]} 36. Rd3 {[%clk
00:00:45]} {[%emt 00:00:25]} Nd4 {[%clk 00:00:34]} {[%emt 00:00:32]} 37. Bc3
{[%clk 00:00:41]} {[%emt 00:00:33]} Rb1+ {[%clk 00:00:39]} {[%emt 00:00:27]} 38.
Kg2 {[%clk 00:00:43]} {[%emt 00:00:26]} Nb5 {[%clk 00:01:05]} {[%emt 00:00:03]}
39. Ba5 {[%clk 00:00:36]} {[%emt 00:00:38]} Ra1 {[%clk 00:00:54]} {[%emt
00:00:41]} 40. Nc4 {[%clk 00:00:34]} {[%emt 00:00:33]} Ra2 {[%clk 00:01:02]}
{[%emt 00:00:21]} 41. Kh3 {[%clk 00:00:34]} {[%emt 00:00:30]} Rxc2 {[%clk
00:00:37]} {[%emt 00:00:54]} 42. Ne3 {[%clk 00:01:00]} {[%emt 00:00:05]} Ra2
{[%clk 00:23:58]} {[%emt 00:07:09]} 43. Nc4 {[%clk 00:29:49]} {[%emt 00:01:40]}
h5 {[%clk 00:19:08]} {[%emt 00:05:21]} 44. Bd2 {[%clk 00:22:03]} {[%emt
00:08:14]} Nd4 {[%clk 00:17:39]} {[%emt 00:01:59]} 45. Bc3 {[%clk 00:18:31]}
{[%emt 00:04:03]} Ne6 {[%clk 00:12:10]} {[%emt 00:05:59]} 46. Bb2 {[%clk
00:13:33]} {[%emt 00:05:29]} Nf8 {[%clk 00:09:39]} {[%emt 00:02:59]} 47. Rd2
{[%clk 00:07:47]} {[%emt 00:06:18]} Nd7 {[%clk 00:07:04]} {[%emt 00:03:03]} 48.
Ne3 {[%clk 00:06:31]} {[%emt 00:01:47]} Nb6 {[%clk 00:06:42]} {[%emt 00:00:52]}
49. Rc2 {[%clk 00:05:09]} {[%emt 00:01:53]} Be7 {[%clk 00:04:22]} {[%emt
00:02:51]} 50. Nd1 {[%clk 00:02:25]} {[%emt 00:03:14]} Nd5 {[%clk 00:04:35]}
{[%emt 00:00:16]} 51. Rc4 {[%clk 00:02:23]} {[%emt 00:00:32]} Kd7 {[%clk
00:02:43]} {[%emt 00:02:20]} 52. Rxa4 {[%clk 00:02:16]} {[%emt 00:00:39]} Nb6
{[%clk 00:01:15]} {[%emt 00:01:58]} 53. Re4 {[%clk 00:01:44]} {[%emt 00:01:03]}
Ke6 {[%clk 00:00:35]} {[%emt 00:01:10]} 54. g4 {[%clk 00:00:40]} {[%emt
00:01:33]} hxg4+ {[%clk 00:00:38]} {[%emt 00:00:27]} 55. Kxg4 {[%clk 00:01:04]}
{[%emt 00:00:06]} c4 {[%clk 00:00:48]} {[%emt 00:00:20]} 56. Bd4 {[%clk
00:00:35]} {[%emt 00:00:59]} Nd5 {[%clk 00:00:33]} {[%emt 00:00:45]} 57. Bb2
{[%clk 00:00:33]} {[%emt 00:00:31]} Nb6 {[%clk 00:00:33]} {[%emt 00:00:31]} 58.
Bd4 {[%clk 00:00:59]} {[%emt 00:00:04]} Nd5 {[%clk 00:01:03]} {[%emt 00:00:01]}
59. Bb2 {[%clk 00:01:22]} {[%emt 00:00:07]} Bxa3 {[%clk 00:00:43]} {[%emt
00:00:50]} 60. Bxa3 {[%clk 00:01:45]} {[%emt 00:00:06]} Rxa3 {[%clk 00:01:08]}
{[%emt 00:00:05]} 61. Rxc4 {[%clk 00:00:32]} {[%emt 00:01:44]} Ra1 {[%clk
00:01:28]} {[%emt 00:00:09]} 62. Rd4 {[%clk 00:00:33]} {[%emt 00:00:29]} Rxd1
{[%clk 00:01:48]} {[%emt 00:00:11]} 0-1

[Event "European Women's Chess Championship (49-84)"]
[Site "Batumi, Georgia"]
[Date "2026.05.25"]
[Round "1.65"]
[White "Tsetskhladze, Mariam"]
[Black "Rekhviashvili, Mariam"]
[Result "1-0"]
[TimeControl "90min /40moves + 30min + 30-sec increment from move 1"]
[WhiteTitle "-"]
[BlackTitle "-"]
[WhiteFideId "13623834"]
[BlackFideId "13635859"]
[WhiteElo "2234"]
[BlackElo "1836"]

1. e4 {[%clk 01:30:50]} {[%emt 00:00:09]} e6 {[%clk 01:30:41]} {[%emt
00:00:12]} 2. d4 {[%clk 01:31:15]} {[%emt 00:00:13]} d5 {[%clk 01:31:04]}
{[%emt 00:00:06]} 3. Nc3 {[%clk 01:31:41]} {[%emt 00:00:04]} dxe4 {[%clk
01:31:25]} {[%emt 00:00:10]} 4. Nxe4 {[%clk 01:32:08]} {[%emt 00:00:04]} Nd7
{[%clk 01:31:45]} {[%emt 00:00:08]} 5. Nf3 {[%clk 01:32:32]} {[%emt 00:00:07]}
Ngf6 {[%clk 01:32:08]} {[%emt 00:00:07]} 6. Nxf6+ {[%clk 01:32:56]} {[%emt
00:00:05]} Nxf6 {[%clk 01:32:29]} {[%emt 00:00:09]} 7. Be3 {[%clk 01:33:16]}
{[%emt 00:00:10]} Be7 {[%clk 01:28:57]} {[%emt 00:04:01]} 8. Bd3 {[%clk
01:33:32]} {[%emt 00:00:16]} O-O {[%clk 01:29:03]} {[%emt 00:00:22]} 9. Qe2
{[%clk 01:33:42]} {[%emt 00:00:21]} b6 {[%clk 01:28:34]} {[%emt 00:00:59]} 10.
O-O-O {[%clk 01:33:57]} {[%emt 00:00:15]} Bb7 {[%clk 01:28:57]} {[%emt
00:00:06]} 11. Rhe1 {[%clk 01:26:19]} {[%emt 00:08:09]} Nd5 {[%clk 01:09:55]}
{[%emt 00:19:33]} 12. Kb1 {[%clk 01:15:57]} {[%emt 00:10:52]} a5 {[%clk
00:48:29]} {[%emt 00:21:55]} 13. Ne5 {[%clk 01:06:56]} {[%emt 00:09:31]} Nb4
{[%clk 00:38:48]} {[%emt 00:10:11]} 14. Bc4 {[%clk 00:59:37]} {[%emt 00:07:49]}
Bd5 {[%clk 00:26:33]} {[%emt 00:12:45]} 15. a3 {[%clk 00:46:47]} {[%emt
00:13:20]} Bxc4 {[%clk 00:21:43]} {[%emt 00:05:21]} 16. Qxc4 {[%clk 00:46:56]}
{[%emt 00:00:20]} Nd5 {[%clk 00:22:08]} {[%emt 00:00:05]} 17. Qc6 {[%clk
00:38:11]} {[%emt 00:09:16]} Qd6 {[%clk 00:18:56]} {[%emt 00:03:41]} 18. c4
{[%clk 00:29:52]} {[%emt 00:08:49]} Nf6 {[%clk 00:15:23]} {[%emt 00:04:04]} 19.
Qf3 {[%clk 00:28:18]} {[%emt 00:02:00]} a4 {[%clk 00:08:49]} {[%emt 00:07:08]}
20. Bf4 {[%clk 00:27:07]} {[%emt 00:01:41]} Qd8 {[%clk 00:08:44]} {[%emt
00:00:34]} 21. Nc6 {[%clk 00:22:59]} {[%emt 00:04:39]} Qe8 {[%clk 00:07:53]}
{[%emt 00:01:21]} 22. Bxc7 {[%clk 00:19:11]} {[%emt 00:04:18]} Rc8 {[%clk
00:07:30]} {[%emt 00:00:52]} 23. Nxe7+ {[%clk 00:19:30]} {[%emt 00:00:11]} Qxe7
{[%clk 00:07:56]} {[%emt 00:00:04]} 24. Bxb6 {[%clk 00:19:52]} {[%emt
00:00:08]} Nd7 {[%clk 00:07:44]} {[%emt 00:00:42]} 25. Ba5 {[%clk 00:19:17]}
{[%emt 00:01:05]} Qg5 {[%clk 00:07:27]} {[%emt 00:00:47]} 26. Bb4 {[%emt
00:00:47]} Rfd8 {[%clk 00:07:26]} 27. d5 {[%clk 00:13:45]} {[%emt 00:06:16]}
Ne5 {[%clk 00:05:06]} {[%emt 00:02:50]} 28. Qe4 {[%clk 00:12:55]} {[%emt
00:01:16]} Nxc4 {[%clk 00:04:58]} {[%emt 00:00:42]} 29. dxe6 {[%clk 00:12:18]}
{[%emt 00:01:08]} Rxd1+ {[%clk 00:03:00]} {[%emt 00:02:28]} 30. Rxd1 {[%clk
00:12:44]} {[%emt 00:00:03]} Qf6 {[%clk 00:03:20]} {[%emt 00:00:10]} 31. exf7+
{[%clk 00:12:51]} {[%emt 00:00:23]} Qxf7 {[%clk 00:03:44]} {[%emt 00:00:07]} 32.
Qd5 {[%clk 00:11:58]} {[%emt 00:01:23]} Re8 {[%clk 00:03:52]} {[%emt 00:00:22]}
33. Qxf7+ {[%clk 00:12:08]} {[%emt 00:00:20]} Kxf7 {[%clk 00:04:20]} {[%emt
00:00:01]} 34. Rd4 {[%clk 00:11:59]} {[%emt 00:00:39]} Nb6 {[%clk 00:04:10]}
{[%emt 00:00:39]} 35. Bc5 {[%clk 00:11:47]} {[%emt 00:00:43]} Re1+ {[%clk
00:03:49]} {[%emt 00:00:51]} 36. Kc2 {[%clk 00:12:03]} {[%emt 00:00:13]} Re2+
{[%clk 00:03:53]} {[%emt 00:00:27]} 37. Kc3 {[%clk 00:12:17]} {[%emt 00:00:16]}
Nc8 {[%clk 00:04:07]} {[%emt 00:00:16]} 38. Rxa4 {[%clk 00:12:39]} {[%emt
00:00:10]} 1-0